fUSD/lending_fUSD_20260525
["ID","MTS","AMOUNT","RATE_DAILY","PERIOD"]
[422949121,1779667850000,-163.13,0.0002755,2]
[422949143,1779667850000,-1589.0,0.00027862,3]
[422949134,1779667850000,-1589.0,0.0002772,3]
[422949144,1779667850000,-2316.0,0.00027862,3]
[422949132,1779667850000,-1598.38,0.00027711,7]
[422949137,1779667850000,-393.0,0.00027765,2]
[422949138,1779667850000,-1589.0,0.00027805,3]
[422949139,1779667850000,-393.0,0.00027809,2]
[422949141,1779667850000,-393.0,0.00027862,2]
[422949140,1779667850000,-393.0,0.00027814,2]
[422949142,1779667850000,-386.0,0.00027862,2]
[422949145,1779667850000,-393.0,0.00027864,2]
[422949146,1779667850000,-1345.39,0.00027872,2]
[422949069,1779667850000,-151.0,0.00027397,2]
[422949135,1779667850000,-163.0,0.0002772,3]
[422949120,1779667850000,-1343.42,0.0002755,30]
[422949136,1779667850000,-2305.0,0.0002773,3]
[422949113,1779667850000,-151.0,0.00027547,7]
[422949118,1779667850000,-1600.61,0.0002755,30]
[422949067,1779667850000,-151.0,0.00027397,2]
[422949071,1779667850000,-151.0,0.00027397,2]
[422949059,1779667850000,-209.358656,0.00027397,2]
[422949090,1779667850000,-1589.0,0.000274,3]
[422949084,1779667850000,-6219.73,0.000274,14]
[422949096,1779667850000,-163.0,0.00027476,3]
[422949082,1779667850000,-2316.0,0.000274,3]
[422949088,1779667850000,-4509.08,0.000274,2]
[422949092,1779667850000,-699.0,0.000274,3]
[422949104,1779667850000,-151.0,0.00027541,7]
[422949100,1779667850000,-163.0,0.00027485,3]
[422949098,1779667850000,-1589.0,0.00027485,3]
[422949094,1779667850000,-163.0,0.00027476,3]
[422949102,1779667850000,-2316.0,0.00027485,3]
[422949117,1779667850000,-161.59,0.0002755,2]
[422949115,1779667850000,-1345.39,0.0002755,30]
[422949111,1779667850000,-201.727795,0.00027544,7]
[422949116,1779667850000,-647.73,0.0002755,30]
[422949110,1779667850000,-151.0,0.00027544,7]
[422949109,1779667850000,-25739.13632781,0.00027544,7]
[422949114,1779667850000,-126747.93600329,0.0002755,2]
[422949107,1779667850000,-48080.51265074,0.00027544,7]
[422949108,1779667850000,-406260.42245393,0.00027544,7]
[422949086,1779667850000,-773.01,0.000274,7]
[422949106,1779667850000,-2316.0,0.00027542,3]
[422949112,1779667850000,-151.0,0.00027544,7]
[422949194,1779667851000,-1345.39,0.00028194,7]
[422949187,1779667851000,-161.6,0.0002813,7]
[422949191,1779667851000,-506.0,0.00028164,11]
[422949190,1779667851000,-174.019,0.00028131,18]
[422949189,1779667851000,-1552.501,0.00028131,18]
[422949188,1779667851000,-163.14,0.0002813,7]
[422949181,1779667851000,-163.0,0.0002805,3]
[422949184,1779667851000,-163.0,0.00028111,3]
[422949180,1779667851000,-1589.0,0.0002805,3]
[422949178,1779667851000,-1598.38,0.00028033,30]
[422949179,1779667851000,-163.0,0.0002804,3]
[422949192,1779667851000,-1589.0,0.00028191,3]
[422949186,1779667851000,-1589.0,0.00028125,3]
[422949193,1779667851000,-1589.0,0.00028191,3]
[422949205,1779667851000,-519.0,0.00028226,2]
[422949196,1779667851000,-1600.61,0.00028194,7]
[422949185,1779667851000,-2316.0,0.00028111,3]
[422949197,1779667851000,-646.79,0.00028194,7]
[422949200,1779667851000,-300.0,0.00028199,30]
[422949204,1779667851000,-1271.0,0.00028226,2]
[422949198,1779667851000,-1343.42,0.00028194,7]
[422949201,1779667851000,-414.04,0.000282,7]
[422949199,1779667851000,-1598.38,0.00028194,7]
[422949203,1779667851000,-927.0,0.00028226,2]
[422949207,1779667851000,-3635.0,0.00028226,2]
[422949208,1779667851000,-986.89192752,0.00028255,10]
[422949202,1779667851000,-625.0,0.00028226,2]
[422949209,1779667851000,-507.4,0.00028267,2]
[422949177,1779667851000,-1343.42,0.00028033,30]
[422949195,1779667851000,-647.73,0.00028194,7]
[422949176,1779667851000,-646.79,0.00028033,30]
[422949147,1779667851000,-647.73,0.00027872,2]
[422949175,1779667851000,-1600.61,0.00028033,30]
[422949156,1779667851000,-393.0,0.00027954,2]
[422949157,1779667851000,-2316.0,0.00027956,3]
[422949211,1779667851000,-181.18,0.0002831,2]
[422949149,1779667851000,-646.79,0.00027872,2]
[422949150,1779667851000,-1343.42,0.00027872,2]
[422949152,1779667851000,-393.0,0.00027887,2]
[422949151,1779667851000,-1598.38,0.00027872,2]
[422949154,1779667851000,-393.0,0.0002793,2]
[422949153,1779667851000,-2316.0,0.00027909,3]
[422949155,1779667851000,-393.0,0.00027934,2]
[422949148,1779667851000,-1600.61,0.00027872,2]
[422949158,1779667851000,-506.17,0.00027964,7]
[422949160,1779667851000,-1000.0,0.0002797,2]
[422949161,1779667851000,-1000.0,0.0002797,2]
[422949162,1779667851000,-1000.0,0.0002797,2]
[422949169,1779667851000,-393.0,0.00028,2]
[422949163,1779667851000,-1000.0,0.0002797,2]
[422949164,1779667851000,-1000.0,0.0002797,2]
[422949170,1779667851000,-200.0,0.00028,2]
[422949166,1779667851000,-393.0,0.00027991,2]
[422949159,1779667851000,-1000.0,0.0002797,2]
[422949165,1779667851000,-150.0,0.00027973,2]
[422949167,1779667851000,-300.0,0.00027999,30]
[422949168,1779667851000,-1000.0,0.00027999,8]
[422949172,1779667851000,-393.0,0.0002802,2]
[422949183,1779667851000,-163.0,0.00028111,3]
[422949182,1779667851000,-215.08487632,0.00028097,2]
[422949171,1779667851000,-4509.08,0.00028,2]
[422949174,1779667851000,-647.73,0.00028033,30]
[422949173,1779667851000,-1345.39,0.00028033,30]
[422949222,1779667851000,-163.0,0.00028436,3]
[422949206,1779667851000,-1224.0,0.00028226,2]
[422949221,1779667851000,-1589.0,0.00028427,3]
[422949243,1779667851000,-151.0,0.00028528,7]
[422949244,1779667851000,-871.485589,0.00028528,7]
[422949246,1779667851000,-871.485589,0.00028528,7]
[422949251,1779667851000,-462.719026,0.00028528,7]
[422949252,1779667851000,-518.523324,0.00028528,7]
[422949262,1779667851000,-209.358664,0.00028528,7]
[422949255,1779667851000,-518.523314,0.00028528,7]
[422949253,1779667851000,-518.523324,0.00028528,7]
[422949263,1779667851000,-157.174992,0.00028528,7]
[422949254,1779667851000,-518.523324,0.00028528,7]
[422949257,1779667851000,-151.0,0.00028528,7]
[422949256,1779667851000,-151.0,0.00028528,7]
[422949258,1779667851000,-291.112548,0.00028528,7]
[422949260,1779667851000,-209.358656,0.00028528,7]
[422949245,1779667851000,-462.719021,0.00028528,7]
[422949259,1779667851000,-209.358656,0.00028528,7]
[422949267,1779667851000,-157.174988,0.00028528,7]
[422949270,1779667851000,-198.247101,0.00028528,7]
[422949265,1779667851000,-157.174992,0.00028528,7]
[422949266,1779667851000,-151.0,0.00028528,7]
[422949275,1779667851000,-1589.0,0.0002868,3]
[422949271,1779667851000,-2316.0,0.0002853,3]
[422949269,1779667851000,-274.538261,0.00028528,7]
[422949264,1779667851000,-157.174992,0.00028528,7]
[422949276,1779667851000,-163.0,0.00028746,3]
[422949277,1779667851000,-1589.0,0.00028751,3]
[422949268,1779667851000,-274.538261,0.00028528,7]
[422949273,1779667851000,-300.0,0.00028599,30]
[422949223,1779667851000,-2316.0,0.00028445,3]
[422949274,1779667851000,-2316.0,0.0002861,3]
[422949272,1779667851000,-1589.0,0.00028591,3]
[422949247,1779667851000,-462.719021,0.00028528,7]
[422949261,1779667851000,-209.358656,0.00028528,7]
[422949241,1779667851000,-321.862122,0.00028528,7]
[422949210,1779667851000,-794.00572942,0.0002827,2]
[422949242,1779667851000,-321.862122,0.00028528,7]
[422949214,1779667851000,-400.0,0.0002837,2]
[422949217,1779667851000,-300.0,0.00028399,30]
[422949212,1779667851000,-1000.0,0.00028332,11]
[422949218,1779667851000,-6219.73,0.000284,14]
[422949216,1779667851000,-1589.0,0.00028398,3]
[422949219,1779667851000,-773.01,0.000284,7]
[422949220,1779667851000,-1589.0,0.00028426,3]
[422949215,1779667851000,-1589.0,0.00028398,3]
[422949224,1779667851000,-500.0,0.00028486,60]
[422949225,1779667851000,-900.0,0.00028486,60]
[422949227,1779667851000,-1589.0,0.00028502,3]
[422949235,1779667851000,-151.0,0.00028528,7]
[422949226,1779667851000,-500.0,0.00028486,60]
[422949213,1779667851000,-163.0,0.0002836,3]
[422949228,1779667851000,-501.01,0.0002851,14]
[422949236,1779667851000,-151.0,0.00028528,7]
[422949237,1779667851000,-255.852836,0.00028528,7]
[422949240,1779667851000,-321.862122,0.00028528,7]
[422949249,1779667851000,-462.719021,0.00028528,7]
[422949238,1779667851000,-151.0,0.00028528,7]
[422949250,1779667851000,-871.485586,0.00028528,7]
[422949248,1779667851000,-871.485589,0.00028528,7]
[422949239,1779667851000,-321.862122,0.00028528,7]
[422949233,1779667851000,-151.0,0.00028528,7]
[422949231,1779667851000,-580233.50893622,0.00028528,2]
[422949232,1779667851000,-152.529896,0.00028528,7]
[422949229,1779667851000,-2316.0,0.00028511,3]
[422949230,1779667851000,-151.0,0.00028525,7]
[422949234,1779667851000,-151.0,0.00028528,7]
[422949325,1779667852000,-163.14,0.00029,30]
[422949322,1779667852000,-156.0,0.00029,2]
[422949323,1779667852000,-156.0,0.00029,2]
[422949321,1779667852000,-161.61,0.00029,30]
[422949308,1779667852000,-166.03522415,0.0002897,7]
[422949330,1779667852000,-2316.0,0.00029071,3]
[422949318,1779667852000,-10000.0,0.00029,2]
[422949319,1779667852000,-10000.0,0.00029,2]
[422949316,1779667852000,-5099.51,0.00029,7]
[422949317,1779667852000,-10000.0,0.00029,2]
[422949306,1779667852000,-441.37072197,0.0002897,7]
[422949311,1779667852000,-202.79,0.00028999,30]
[422949320,1779667852000,-158.43,0.00029,30]
[422949331,1779667852000,-2316.0,0.00029071,3]
[422949333,1779667852000,-4509.08,0.000291,2]
[422949326,1779667852000,-10000.0,0.00029,2]
[422949328,1779667852000,-2316.0,0.00029067,3]
[422949327,1779667852000,-2316.0,0.00029067,3]
[422949324,1779667852000,-156.0,0.00029,2]
[422949332,1779667852000,-4509.08,0.000291,2]
[422949338,1779667852000,-500.0,0.0002913,7]
[422949334,1779667852000,-172.56,0.000291,7]
[422949335,1779667852000,-151.0,0.00029125,7]
[422949337,1779667852000,-503.97508657,0.0002913,20]
[422949336,1779667852000,-19786.36570546,0.00029128,2]
[422949339,1779667852000,-500.0,0.0002913,7]
[422949340,1779667852000,-500.0,0.0002913,7]
[422949342,1779667852000,-500.0,0.0002913,7]
[422949315,1779667852000,-284.96,0.00029,2]
[422949329,1779667852000,-2316.0,0.00029071,3]
[422949309,1779667852000,-400.0,0.0002897,2]
[422949278,1779667852000,-1589.0,0.00028756,3]
[422949313,1779667852000,-10000.0,0.00029,2]
[422949341,1779667852000,-500.0,0.0002913,7]
[422949279,1779667852000,-1589.0,0.00028765,3]
[422949282,1779667852000,-325.76726454,0.00028832,7]
[422949281,1779667852000,-185.73577206,0.00028832,7]
[422949286,1779667852000,-199.04534803,0.00028832,7]
[422949280,1779667852000,-300.0,0.00028799,30]
[422949291,1779667852000,-190.46655014,0.00028908,7]
[422949283,1779667852000,-163.33883163,0.00028832,7]
[422949290,1779667852000,-168.63573053,0.00028908,7]
[422949284,1779667852000,-152.60248781,0.00028832,7]
[422949287,1779667852000,-150.0,0.00028855,2]
[422949289,1779667852000,-154.73852102,0.00028908,7]
[422949285,1779667852000,-165.98972749,0.00028832,7]
[422949288,1779667852000,-188.76113661,0.00028908,7]
[422949293,1779667852000,-171.24198313,0.00028908,7]
[422949294,1779667852000,-243.66665619,0.00028908,7]
[422949303,1779667852000,-164.29197807,0.0002897,7]
[422949314,1779667852000,-208.0,0.00029,7]
[422949312,1779667852000,-150.0,0.00028999,2]
[422949307,1779667852000,-179.90292617,0.0002897,7]
[422949305,1779667852000,-173.43536934,0.0002897,7]
[422949301,1779667852000,-2316.0,0.0002893,3]
[422949299,1779667852000,-295.50182155,0.00028908,7]
[422949310,1779667852000,-300.0,0.00028999,30]
[422949298,1779667852000,-168.98178055,0.00028908,7]
[422949300,1779667852000,-1589.0,0.00028916,3]
[422949297,1779667852000,-328.54394099,0.00028908,7]
[422949296,1779667852000,-150.85912944,0.00028908,2]
[422949295,1779667852000,-151.32276207,0.00028908,7]
[422949292,1779667852000,-175.3800009,0.00028908,7]
[422949304,1779667852000,-158.61139559,0.0002897,7]
[422949302,1779667852000,-170.39928296,0.0002897,7]
[422949344,1779667852000,-500.0,0.0002913,7]
[422949364,1779667852000,-500.0,0.0002913,7]
[422949355,1779667852000,-500.0,0.0002913,7]
[422949374,1779667852000,-500.0,0.0002913,7]
[422949380,1779667852000,-500.0,0.0002913,7]
[422949375,1779667852000,-500.0,0.0002913,7]
[422949385,1779667852000,-500.0,0.0002913,7]
[422949387,1779667852000,-500.0,0.0002913,7]
[422949389,1779667852000,-500.0,0.0002913,7]
[422949388,1779667852000,-500.0,0.0002913,7]
[422949390,1779667852000,-630.84,0.0002913,7]
[422949396,1779667852000,-1500.0,0.000293,7]
[422949391,1779667852000,-572.01,0.0002913,7]
[422949392,1779667852000,-400.0,0.0002917,2]
[422949393,1779667852000,-506.0,0.0002918,12]
[422949394,1779667852000,-1589.0,0.00029231,3]
[422949386,1779667852000,-500.0,0.0002913,7]
[422949371,1779667852000,-500.0,0.0002913,7]
[422949395,1779667852000,-150.0,0.000293,30]
[422949398,1779667852000,-900.0,0.00029308,60]
[422949399,1779667852000,-150.0,0.00029372,2]
[422949401,1779667852000,-152.0,0.00029418,7]
[422949402,1779667852000,-152.0,0.00029418,7]
[422949403,1779667852000,-1000.0,0.0002948,12]
[422949410,1779667852000,-2382.4559662,0.0002955,2]
[422949400,1779667852000,-2316.0,0.00029391,3]
[422949404,1779667852000,-1000.0,0.00029499,38]
[422949411,1779667852000,-2316.0,0.00029551,3]
[422949409,1779667852000,-2024.82500842,0.000295,38]
[422949405,1779667852000,-761.53857703,0.000295,38]
[422949407,1779667852000,-1823.15212922,0.000295,38]
[422949408,1779667852000,-1854.81394067,0.000295,38]
[422949354,1779667852000,-500.0,0.0002913,7]
[422949397,1779667852000,-500.0,0.00029308,60]
[422949373,1779667852000,-500.0,0.0002913,7]
[422949406,1779667852000,-1684.802873,0.000295,38]
[422949379,1779667852000,-500.0,0.0002913,7]
[422949343,1779667852000,-500.0,0.0002913,7]
[422949381,1779667852000,-500.0,0.0002913,7]
[422949347,1779667852000,-500.0,0.0002913,7]
[422949349,1779667852000,-500.0,0.0002913,7]
[422949353,1779667852000,-500.0,0.0002913,7]
[422949356,1779667852000,-500.0,0.0002913,7]
[422949345,1779667852000,-500.0,0.0002913,7]
[422949351,1779667852000,-500.0,0.0002913,7]
[422949350,1779667852000,-500.0,0.0002913,7]
[422949352,1779667852000,-500.0,0.0002913,7]
[422949348,1779667852000,-500.0,0.0002913,7]
[422949357,1779667852000,-500.0,0.0002913,7]
[422949359,1779667852000,-500.0,0.0002913,7]
[422949360,1779667852000,-500.0,0.0002913,7]
[422949362,1779667852000,-500.0,0.0002913,7]
[422949346,1779667852000,-500.0,0.0002913,7]
[422949361,1779667852000,-500.0,0.0002913,7]
[422949382,1779667852000,-500.0,0.0002913,7]
[422949369,1779667852000,-500.0,0.0002913,7]
[422949377,1779667852000,-500.0,0.0002913,7]
[422949378,1779667852000,-500.0,0.0002913,7]
[422949383,1779667852000,-500.0,0.0002913,7]
[422949372,1779667852000,-500.0,0.0002913,7]
[422949384,1779667852000,-500.0,0.0002913,7]
[422949376,1779667852000,-500.0,0.0002913,7]
[422949370,1779667852000,-500.0,0.0002913,7]
[422949367,1779667852000,-500.0,0.0002913,7]
[422949363,1779667852000,-500.0,0.0002913,7]
[422949366,1779667852000,-500.0,0.0002913,7]
[422949365,1779667852000,-500.0,0.0002913,7]
[422949358,1779667852000,-500.0,0.0002913,7]
[422949368,1779667852000,-500.0,0.0002913,7]
[422949449,1779667853000,-155.0,0.00029988,30]
[422949442,1779667853000,-151.0,0.00029988,30]
[422949441,1779667853000,-153.0,0.00029988,30]
[422949445,1779667853000,-395.0,0.00029988,30]
[422949444,1779667853000,-162.0,0.00029988,30]
[422949446,1779667853000,-152.0,0.00029988,30]
[422949443,1779667853000,-169.0,0.00029988,30]
[422949448,1779667853000,-435.0,0.00029988,30]
[422949454,1779667853000,-1000.0,0.00029999,6]
[422949451,1779667853000,-1000.0,0.00029999,3]
[422949453,1779667853000,-1000.0,0.00029999,5]
[422949452,1779667853000,-1000.0,0.00029999,4]
[422949456,1779667853000,-1000.0,0.00029999,20]
[422949467,1779667853000,-150.0,0.00030029,2]
[422949458,1779667853000,-10130.85055357,0.0003,2]
[422949457,1779667853000,-1000.0,0.00029999,14]
[422949455,1779667853000,-1000.0,0.00029999,10]
[422949465,1779667853000,-150.0,0.00030029,2]
[422949459,1779667853000,-1000.0,0.0003,14]
[422949461,1779667853000,-1000.0,0.00030028,2]
[422949460,1779667853000,-290.62487641,0.0003,14]
[422949464,1779667853000,-758.48683559,0.00030029,2]
[422949462,1779667853000,-233.64010052,0.00030029,30]
[422949463,1779667853000,-1000.0,0.00030029,2]
[422949450,1779667853000,-152.0,0.00029988,30]
[422949468,1779667853000,-12530.08583361,0.00030029,2]
[422949466,1779667853000,-3331.52140864,0.00030029,2]
[422949447,1779667853000,-155.0,0.00029988,30]
[422949416,1779667853000,-2000.0,0.0002973,2]
[422949436,1779667853000,-1000.0,0.00029916,60]
[422949469,1779667853000,-150.0,0.00030029,2]
[422949412,1779667853000,-163.0,0.0002958,3]
[422949424,1779667853000,-1114.0,0.00029856,30]
[422949414,1779667853000,-10000.0,0.00029729,2]
[422949415,1779667853000,-2000.0,0.0002973,2]
[422949426,1779667853000,-1114.0,0.00029856,30]
[422949425,1779667853000,-1114.0,0.00029856,30]
[422949413,1779667853000,-232.0,0.00029711,3]
[422949420,1779667853000,-171.96519036,0.000298,2]
[422949417,1779667853000,-2000.0,0.0002973,2]
[422949419,1779667853000,-414.04,0.000298,7]
[422949418,1779667853000,-200.0,0.00029788,2]
[422949423,1779667853000,-1114.0,0.00029856,30]
[422949421,1779667853000,-171.96519035,0.000298,2]
[422949422,1779667853000,-234.14869205,0.00029856,7]
[422949433,1779667853000,-1038.65,0.00029865,2]
[422949430,1779667853000,-1114.0,0.00029856,30]
[422949429,1779667853000,-1114.0,0.00029856,30]
[422949431,1779667853000,-1114.0,0.00029856,30]
[422949427,1779667853000,-1114.0,0.00029856,30]
[422949432,1779667853000,-605.188,0.00029856,30]
[422949434,1779667853000,-4509.08,0.000299,2]
[422949439,1779667853000,-153.0,0.00029947,30]
[422949428,1779667853000,-1114.0,0.00029856,30]
[422949438,1779667853000,-177.0,0.00029947,30]
[422949437,1779667853000,-494.0,0.00029947,30]
[422949435,1779667853000,-1000.0,0.00029907,30]
[422949440,1779667853000,-712.38,0.00029975,10]
[422949480,1779667853000,-14281.19671455,0.0003013,7]
[422949488,1779667853000,-1000.0,0.00030137,10]
[422949471,1779667853000,-2000.0,0.00030029,2]
[422949501,1779667853000,-1000.0,0.00030137,10]
[422949506,1779667853000,-227.73904737,0.00030137,2]
[422949504,1779667853000,-166.6668,0.00030137,40]
[422949503,1779667853000,-1003.16,0.00030137,2]
[422949510,1779667853000,-151.0,0.00030147,7]
[422949511,1779667853000,-237.60736623,0.00030178,7]
[422949520,1779667853000,-398.09069605,0.00030178,7]
[422949512,1779667853000,-371.47154411,0.00030178,7]
[422949513,1779667853000,-651.53452908,0.00030178,7]
[422949509,1779667853000,-151.0,0.00030147,7]
[422949521,1779667853000,-506.0,0.00030197,13]
[422949514,1779667853000,-326.67766327,0.00030178,7]
[422949472,1779667853000,-2000.0,0.00030029,2]
[422949518,1779667853000,-331.97945499,0.00030178,7]
[422949519,1779667853000,-188.12028571,0.00030178,7]
[422949516,1779667853000,-167.42232515,0.00030178,7]
[422949515,1779667853000,-305.20497561,0.00030178,7]
[422949527,1779667853000,-173.51654655,0.00030233,7]
[422949522,1779667853000,-2988.6,0.000302,2]
[422949529,1779667853000,-241.79742561,0.00030233,7]
[422949531,1779667853000,-158.64504176,0.00030233,7]
[422949530,1779667853000,-189.90989107,0.00030233,7]
[422949528,1779667853000,-198.91726807,0.00030233,7]
[422949525,1779667853000,-2315.0,0.0003022,3]
[422949523,1779667853000,-936.96,0.000302,7]
[422949524,1779667853000,-773.01,0.000302,7]
[422949526,1779667853000,-221.48643962,0.00030233,7]
[422949505,1779667853000,-415.75868753,0.00030137,2]
[422949500,1779667853000,-1000.0,0.00030137,10]
[422949517,1779667853000,-153.6515425,0.00030178,7]
[422949502,1779667853000,-200.0,0.00030137,2]
[422949496,1779667853000,-1000.0,0.00030137,10]
[422949470,1779667853000,-1940.43660621,0.00030029,2]
[422949479,1779667853000,-500.0,0.0003013,2]
[422949473,1779667853000,-2000.0,0.00030029,2]
[422949474,1779667853000,-1000.0,0.0003007,2]
[422949477,1779667853000,-1000.0,0.00030129,7]
[422949478,1779667853000,-94686.52572504,0.0003013,7]
[422949475,1779667853000,-400.0,0.0003007,2]
[422949481,1779667853000,-500.0,0.0003013,60]
[422949483,1779667853000,-502.90807479,0.0003013,60]
[422949482,1779667853000,-900.0,0.0003013,60]
[422949487,1779667853000,-1000.0,0.00030137,10]
[422949486,1779667853000,-1000.0,0.00030137,10]
[422949476,1779667853000,-1000.0,0.00030099,120]
[422949485,1779667853000,-108813.20132368,0.0003013,2]
[422949498,1779667853000,-1000.0,0.00030137,10]
[422949484,1779667853000,-1037.34605797,0.0003013,14]
[422949499,1779667853000,-1000.0,0.00030137,10]
[422949508,1779667853000,-10020.6624152,0.00030147,2]
[422949507,1779667853000,-152.0,0.00030145,120]
[422949494,1779667853000,-1000.0,0.00030137,10]
[422949497,1779667853000,-1000.0,0.00030137,10]
[422949495,1779667853000,-1000.0,0.00030137,10]
[422949492,1779667853000,-1000.0,0.00030137,10]
[422949491,1779667853000,-1000.0,0.00030137,10]
[422949490,1779667853000,-1000.0,0.00030137,10]
[422949489,1779667853000,-1000.0,0.00030137,10]
[422949493,1779667853000,-1000.0,0.00030137,10]
[422949576,1779667854000,-153.0,0.00030988,30]
[422949567,1779667854000,-290.0,0.000309,3]
[422949582,1779667854000,-435.0,0.00030988,30]
[422949585,1779667854000,-228.75740668,0.00030991,2]
[422949574,1779667854000,-199.93202433,0.00030983,2]
[422949562,1779667854000,-150.0,0.00030841,2]
[422949564,1779667854000,-1589.0,0.0003086,3]
[422949563,1779667854000,-5099.51,0.00030851,7]
[422949565,1779667854000,-936.96,0.000309,7]
[422949566,1779667854000,-2746.2,0.000309,120]
[422949560,1779667854000,-554.75306641,0.00030656,2]
[422949578,1779667854000,-162.0,0.00030988,30]
[422949592,1779667854000,-164.48942588,0.0003105,2]
[422949579,1779667854000,-395.0,0.00030988,30]
[422949596,1779667854000,-557.20731617,0.00031076,7]
[422949577,1779667854000,-151.0,0.00030988,30]
[422949572,1779667854000,-500.0,0.00030952,60]
[422949575,1779667854000,-198.88749482,0.00030983,7]
[422949580,1779667854000,-152.0,0.00030988,30]
[422949583,1779667854000,-155.0,0.00030988,30]
[422949581,1779667854000,-155.0,0.00030988,30]
[422949586,1779667854000,-206.69462283,0.00030992,7]
[422949588,1779667854000,-150.0,0.00030998,2]
[422949590,1779667854000,-512.0,0.00031,5]
[422949589,1779667854000,-267.966666,0.00031,6]
[422949599,1779667854000,-490.0164949,0.00031076,7]
[422949591,1779667854000,-773.01,0.00031,7]
[422949595,1779667854000,-475.21473246,0.00031076,7]
[422949584,1779667854000,-152.0,0.00030988,30]
[422949571,1779667854000,-153.0,0.00030947,30]
[422949568,1779667854000,-506.17,0.00030946,7]
[422949569,1779667854000,-494.0,0.00030947,30]
[422949598,1779667854000,-977.30179362,0.00031076,7]
[422949533,1779667854000,-2316.0,0.00030251,3]
[422949532,1779667854000,-507.4,0.00030239,2]
[422949534,1779667854000,-377.52227322,0.00030257,7]
[422949536,1779667854000,-337.27146107,0.00030257,7]
[422949535,1779667854000,-309.47704204,0.00030257,7]
[422949546,1779667854000,-6219.73,0.000303,14]
[422949537,1779667854000,-380.93310028,0.00030257,7]
[422949538,1779667854000,-350.76000181,0.00030257,7]
[422949540,1779667854000,-487.33331238,0.00030257,7]
[422949545,1779667854000,-591.0036431,0.00030257,7]
[422949539,1779667854000,-342.48396626,0.00030257,7]
[422949541,1779667854000,-302.64552413,0.00030257,7]
[422949544,1779667854000,-337.9635611,0.00030257,7]
[422949570,1779667854000,-177.0,0.00030947,30]
[422949547,1779667854000,-340.79856592,0.00030321,7]
[422949542,1779667854000,-301.71825889,0.00030257,2]
[422949549,1779667854000,-328.58395614,0.00030321,7]
[422949548,1779667854000,-196.4994554,0.00030321,7]
[422949550,1779667854000,-206.61708019,0.00030321,7]
[422949559,1779667854000,-554.75306641,0.00030632,2]
[422949551,1779667854000,-346.87073868,0.00030321,7]
[422949553,1779667854000,-882.74144394,0.00030321,7]
[422949555,1779667854000,-332.0704483,0.00030321,7]
[422949552,1779667854000,-197.34153315,0.00030321,7]
[422949557,1779667854000,-1589.0,0.0003058,3]
[422949558,1779667854000,-1589.0,0.0003058,3]
[422949554,1779667854000,-359.80585234,0.00030321,7]
[422949556,1779667854000,-150.07475276,0.00030385,2]
[422949561,1779667854000,-1112.11695375,0.00030689,2]
[422949543,1779667854000,-657.08788198,0.00030257,7]
[422949587,1779667854000,-210.41999067,0.00030992,7]
[422949573,1779667854000,-900.0,0.00030952,60]
[422949597,1779667854000,-153.15914824,0.00031076,7]
[422949629,1779667854000,-216.43236909,0.00031131,7]
[422949630,1779667854000,-249.88942984,0.00031131,7]
[422949631,1779667854000,-10000.0,0.00031138,7]
[422949635,1779667854000,-284.75604428,0.00031156,2]